bitfinex/quotes_SOLUSD_20230702
["timestamp","ask_amount","ask_price","bid_price","bid_amount"]
[1688286345193,110.3578,19.29,19.274,21.946]
[1688286345599,55.0,19.288,19.274,21.946]
[1688286346884,21.935,19.285,19.274,21.946]
[1688286347090,76.936,19.284,19.274,21.946]
[1688286349796,133.407,19.284,19.274,21.946]
[1688286351009,236.445,19.284,19.274,21.946]
[1688286351210,236.445,19.284,19.27,20.0]
[1688286351508,133.407,19.284,19.274,21.945]
[1688286352213,236.445,19.284,19.273,21.947]
[1688286352413,236.445,19.284,19.269,56.514]
[1688286352414,19.23,19.28,19.269,21.951]
[1688286352613,78.436,19.277,19.265,56.527]
[1688286353109,55.0,19.276,19.265,21.956]
[1688286353410,21.948,19.273,19.265,21.956]
[1688286353611,55.0,19.272,19.265,21.956]
[1688286353811,76.949,19.272,19.265,21.956]
[1688286354017,55.0,19.272,19.265,78.483]
[1688286354316,76.948,19.272,19.265,21.956]
[1688286354699,55.0,19.272,19.265,78.483]
[1688286354894,21.948,19.273,19.265,78.483]
[1688286355094,21.946,19.275,19.265,78.483]
[1688286356108,78.444,19.275,19.265,21.956]
[1688286357022,55.0,19.274,19.265,21.956]
[1688286357313,21.949,19.272,19.265,21.956]
[1688286357715,21.948,19.273,19.265,21.956]
[1688286358397,19.23,19.28,19.265,78.483]
[1688286358711,94.5944,19.289,19.265,78.483]
[1688286358909,44.546151,19.284,19.265,78.483]
[1688286359112,20.0,19.283,19.265,78.483]
[1688286359521,21.941,19.279,19.265,78.483]
[1688286360604,78.427,19.279,19.265,21.956]
[1688286360916,21.946,19.275,19.265,21.956]
[1688286361122,55.0,19.274,19.265,21.956]
[1688286361417,21.949,19.272,19.265,21.956]
[1688286361904,55.0,19.274,19.265,21.956]
[1688286362110,55.0,19.275,19.265,21.956]
[1688286362311,21.948,19.273,19.265,21.956]
[1688286362510,55.0,19.272,19.265,125.096]
[1688286363415,19.23,19.3,19.266,20.0]
[1688286363718,19.23,19.3,19.273,181.539]
[1688286363719,56.433,19.298,19.273,181.539]
[1688286363924,56.425,19.3,19.28,19.22]
[1688286364102,90.6137,19.309,19.28,19.22]
[1688286364103,56.417,19.303,19.286,78.398]
[1688286364411,44.546151,19.298,19.286,78.398]
[1688286364618,21.911,19.306,19.29,181.386]
[1688286364805,21.904,19.312,19.299,181.299]
[1688286365518,21.904,19.312,19.299,78.342]
[1688286365820,19.23,19.31,19.299,21.917]
[1688286366023,21.909,19.307,19.299,21.917]
[1688286366223,21.909,19.307,19.295,56.438]
[1688286366401,21.909,19.307,19.297,21.919]
[1688286366824,21.909,19.307,19.292,56.445]
[1688286367410,21.909,19.307,19.297,21.92]
[1688286367722,21.913,19.304,19.297,21.92]
[1688286367903,102.914,19.308,19.297,21.92]
[1688286368108,21.911,19.305,19.297,21.92]
[1688286368901,21.911,19.306,19.297,21.92]
[1688286369215,56.398,19.31,19.297,21.92]
[1688286369723,21.907,19.309,19.297,124.889]
[1688286371411,78.305,19.309,19.297,21.92]
[1688286371715,55.0,19.308,19.297,21.92]
[1688286371919,21.911,19.305,19.297,21.92]
[1688286372427,78.321,19.305,19.296,21.921]
[1688286372729,21.911,19.305,19.297,21.92]
[1688286373030,55.0,19.304,19.297,21.92]
[1688286373328,21.914,19.302,19.297,21.92]
[1688286376932,21.914,19.302,19.293,21.924]
[1688286376933,75.0,19.301,19.293,21.924]
[1688286377132,78.345,19.299,19.283,94.3812]
[1688286377331,55.0,19.298,19.29,21.927]
[1688286377518,21.922,19.296,19.284,103.034]
[1688286377723,55.0,19.295,19.287,21.931]
[1688286377930,21.925,19.293,19.287,21.931]
[1688286378622,55.0,19.292,19.287,21.931]
[1688286378816,55.0,19.292,19.286,21.931]
[1688286378817,21.927,19.291,19.286,21.931]
[1688286379228,21.927,19.291,19.28,56.483]
[1688286379424,55.0,19.292,19.286,21.932]
[1688286379628,76.926,19.292,19.286,21.932]
[1688286381418,133.374,19.292,19.281,20.0]
[1688286381619,76.926,19.292,19.282,21.936]
[1688286382238,21.926,19.292,19.282,21.936]
[1688286384243,56.43,19.299,19.282,21.936]
[1688286384447,21.924,19.294,19.282,21.936]
[1688286384938,21.927,19.292,19.282,21.936]
[1688286385455,55.0,19.293,19.282,21.936]
[1688286385643,76.918,19.299,19.282,21.936]
[1688286385832,76.92,19.298,19.282,21.936]
[1688286386338,21.92,19.298,19.282,21.936]
[1688286386524,21.92,19.298,19.287,181.412]
[1688286387941,76.921,19.297,19.287,181.412]
[1688286388126,21.92,19.297,19.287,181.412]
[1688286392633,55.0,19.296,19.287,78.392]
[1688286392829,76.922,19.296,19.287,78.392]
[1688286393927,55.0,19.296,19.287,181.414]
[1688286394446,76.921,19.296,19.287,181.414]
[1688286394748,55.0,19.296,19.287,181.414]
[1688286394938,76.921,19.296,19.287,181.414]
[1688286395128,76.922,19.296,19.287,181.414]
[1688286395328,21.918,19.3,19.287,181.414]
[1688286395643,56.408,19.306,19.287,181.414]
[1688286395830,21.913,19.304,19.294,78.365]
[1688286396144,20.0,19.303,19.294,78.365]
[1688286396346,21.912,19.304,19.294,78.365]
[1688286396543,20.0,19.303,19.294,78.365]
[1688286396732,41.914,19.303,19.294,78.365]
[1688286396933,91.7017,19.309,19.294,78.365]
[1688286397247,113.6087,19.309,19.294,78.365]
[1688286397743,21.907,19.309,19.294,78.365]
[1688286399033,55.0,19.308,19.294,78.365]
[1688286399327,55.0,19.308,19.289,99.3438]
[1688286399328,21.912,19.304,19.289,99.3438]
[1688286399528,21.918,19.3,19.294,21.923]
[1688286400541,21.917,19.3,19.294,21.923]
[1688286401250,253.3834,19.308,19.294,78.365]
[1688286401452,21.912,19.304,19.294,78.365]
[1688286402744,55.0,19.307,19.294,78.365]
[1688286402952,21.911,19.306,19.294,78.365]
[1688286403153,55.0,19.305,19.294,78.365]
[1688286404049,76.911,19.305,19.294,78.365]
[1688286405450,94.0574,19.308,19.294,78.365]
[1688286405653,21.91,19.306,19.294,78.365]
[1688286406353,150.4484,19.312,19.294,78.365]
[1688286406558,21.908,19.308,19.294,78.365]
[1688286406750,21.911,19.306,19.294,78.365]
[1688286407452,55.0,19.307,19.294,78.365]
[1688286407750,21.91,19.307,19.294,78.365]
[1688286407938,21.908,19.308,19.294,78.365]
[1688286408143,21.908,19.308,19.295,55.0]
[1688286408443,21.908,19.308,19.298,181.308]
[1688286410241,21.908,19.308,19.298,78.346]
[1688286410439,21.908,19.308,19.298,21.918]
[1688286410640,21.908,19.308,19.298,78.348]
[1688286411858,21.911,19.305,19.298,78.348]
[1688286412239,55.0,19.307,19.298,78.348]
[1688286412738,56.389,19.313,19.298,78.348]
[1688286412944,21.907,19.309,19.298,78.348]
[1688286415347,21.906,19.31,19.298,78.348]
[1688286415655,21.905,19.311,19.298,78.348]
[1688286416955,21.902,19.313,19.304,78.324]
[1688286417958,56.376,19.317,19.304,78.324]
[1688286418652,55.0,19.316,19.304,78.324]
[1688286418855,21.902,19.313,19.304,78.324]
[1688286419058,55.0,19.316,19.304,78.324]
[1688286419847,21.902,19.313,19.304,78.324]
[1688286420362,56.376,19.32,19.304,78.324]
[1688286420363,56.364,19.321,19.304,78.324]
[1688286420553,21.898,19.317,19.304,78.324]
[1688286422549,55.0,19.316,19.304,78.324]
[1688286422759,21.901,19.315,19.304,78.324]
[1688286425067,102.846,19.32,19.304,78.324]
[1688286425068,21.903,19.313,19.304,78.324]
[1688286428074,19.18,19.31,19.291,30.0]
[1688286428367,21.912,19.305,19.292,20.0]
[1688286428568,21.916,19.301,19.296,21.92]
[1688286429272,21.92,19.308,19.296,21.92]
[1688286429473,21.915,19.302,19.296,21.92]
[1688286430471,21.914,19.303,19.296,21.92]
[1688286430771,102.881,19.314,19.296,181.33]
[1688286431066,21.909,19.308,19.296,181.33]
[1688286431477,21.908,19.308,19.296,181.33]
[1688286432966,21.908,19.308,19.296,78.356]
[1688286433170,55.0,19.307,19.296,21.92]
[1688286433479,21.912,19.304,19.296,21.92]
[1688286433675,55.0,19.303,19.296,21.92]
[1688286433880,21.916,19.301,19.296,21.92]
[1688286437475,19.10677332,19.301,19.296,21.92]
[1688286438161,21.915,19.302,19.296,21.92]
[1688286438980,21.915,19.302,19.293,150.0065]
[1688286438981,78.334,19.302,19.293,93.5625]
[1688286439172,21.918,19.3,19.295,21.922]
[1688286439358,76.918,19.299,19.295,21.922]
[1688286439558,55.0,19.298,19.295,21.922]
[1688286439959,76.919,19.298,19.295,21.922]
[1688286440355,76.919,19.298,19.286,97.1004]
[1688286440577,76.919,19.298,19.287,20.0]
[1688286440773,76.919,19.298,19.29,78.381]
[1688286440977,76.919,19.298,19.291,20.0]
[1688286441176,76.919,19.298,19.293,21.924]
[1688286441475,76.919,19.298,19.292,21.925]
[1688286441676,76.919,19.298,19.286,56.465]
[1688286442058,179.883,19.298,19.27,38.42]
[1688286442261,179.883,19.298,19.277,30.0]
[1688286442474,179.883,19.298,19.278,20.0]
[1688286442681,179.883,19.298,19.277,30.0]
[1688286442871,179.883,19.298,19.286,21.932]
[1688286445498,179.883,19.298,19.281,56.477]
[1688286445778,179.883,19.298,19.282,20.0]
[1688286445963,179.883,19.298,19.285,21.934]
[1688286446275,21.919,19.298,19.285,21.934]
[1688286448482,55.0,19.297,19.285,21.934]
[1688286448670,21.924,19.294,19.285,21.934]
[1688286449279,21.923,19.295,19.285,21.934]
[1688286449879,55.0,19.294,19.285,21.934]
[1688286450877,56.433,19.298,19.285,21.934]
[1688286451183,21.923,19.295,19.285,21.934]
[1688286451883,999.4,19.331,19.285,21.934]
[1688286451884,21.914,19.303,19.285,21.934]
[1688286452065,20.0,19.301,19.29,78.379]
[1688286452263,41.916,19.301,19.29,78.379]
[1688286452461,41.916,19.301,19.29,21.927]
[1688286453074,21.92,19.297,19.29,21.927]
[1688286453486,55.0,19.296,19.289,21.928]
[1688286453787,21.924,19.294,19.289,21.928]
[1688286454176,20.0,19.301,19.289,21.928]
[1688286454479,21.919,19.298,19.289,21.928]
[1688286454980,21.916,19.301,19.289,124.94]
[1688286458490,55.0,19.3,19.289,21.928]
[1688286458784,21.92,19.297,19.289,21.928]
[1688286464593,78.353,19.297,19.288,21.93]
[1688286465092,21.92,19.297,19.288,21.93]
[1688286469695,21.924,19.294,19.288,21.93]
[1688286476007,21.922,19.296,19.288,21.93]
[1688286476205,56.428,19.299,19.288,21.93]
[1688286476206,21.918,19.299,19.288,21.93]
[1688286478011,55.0,19.298,19.288,21.93]
[1688286478195,21.922,19.296,19.288,21.93]
[1688286480013,55.0,19.298,19.282,20.0]
[1688286480014,21.927,19.292,19.282,76.475]
[1688286480308,181.371,19.292,19.282,41.936]
[1688286480511,55.0,19.291,19.282,41.936]
[1688286480807,21.93,19.289,19.282,41.936]
[1688286481395,21.929,19.29,19.282,41.936]
[1688286481706,55.0,19.296,19.282,41.936]
[1688286481907,21.927,19.292,19.282,41.936]
[1688286483291,56.436,19.298,19.282,52.77319922]
[1688286483492,21.922,19.296,19.283,55.0]
[1688286483706,21.922,19.296,19.286,78.394]
[1688286484713,21.921,19.297,19.286,78.394]
[1688286485210,95.6439,19.301,19.286,89.23119922]
[1688286485521,103.032,19.306,19.29,19.06]
[1688286485715,91.2305,19.309,19.294,181.344]
[1688286486214,21.906,19.31,19.299,181.302]
[1688286486595,90.7836,19.316,19.299,192.13919922]
[1688286486807,21.901,19.314,19.299,192.13919922]
[1688286487016,21.901,19.314,19.3,10.83719922]
[1688286487313,21.901,19.314,19.304,78.324]
[1688286487809,20.0,19.313,19.304,21.912]
[1688286488016,21.905,19.311,19.304,21.912]
[1688286488504,55.0,19.31,19.304,21.912]
[1688286488708,21.907,19.309,19.304,21.912]
[1688286489098,21.906,19.31,19.304,21.912]
[1688286489615,21.905,19.311,19.304,21.912]
[1688286491123,21.905,19.311,19.304,20.912]
[1688286493422,20.0,19.313,19.304,77.325]
[1688286493620,21.903,19.312,19.304,20.912]
[1688286493805,21.906,19.309,19.304,20.912]
[1688286494014,21.905,19.311,19.304,20.912]
[1688286494214,8.92655942,19.317,19.304,20.912]
[1688286494512,102.841,19.322,19.304,20.912]
[1688286494719,21.899,19.316,19.304,20.912]
[1688286494911,21.899,19.316,19.305,55.0]
[1688286495106,21.899,19.316,19.308,21.907]
[1688286495107,78.277,19.316,19.308,21.907]
[1688286495914,21.899,19.316,19.308,21.907]
[1688286497517,106.80575942,19.326,19.308,21.907]
[1688286497726,21.899,19.316,19.308,21.907]
[1688286502514,55.0,19.315,19.308,21.907]
[1688286502727,21.902,19.313,19.308,21.907]
[1688286503125,21.902,19.313,19.304,21.912]
[1688286503126,55.0,19.312,19.304,21.912]
[1688286503430,55.0,19.312,19.299,56.426]
[1688286503431,78.302,19.31,19.3,21.916]
[1688286503634,78.302,19.31,19.291,97.3227]
[1688286503635,78.302,19.31,19.294,56.439]
[1688286503813,78.319,19.306,19.297,21.919]
[1688286504014,55.0,19.305,19.297,21.919]
[1688286504315,21.914,19.303,19.297,21.919]
[1688286506112,106.41555942,19.31,19.297,21.919]
[1688286506113,78.319,19.31,19.297,21.919]
[1688286506318,21.908,19.308,19.297,21.919]
[1688286506519,55.0,19.307,19.297,21.919]
[1688286507133,76.909,19.307,19.297,21.919]
[1688286509741,133.313,19.307,19.297,21.919]
[1688286512235,133.313,19.307,19.291,97.3227]
[1688286512421,133.313,19.307,19.292,20.0]
[1688286513236,133.313,19.307,19.291,20.0]
[1688286513822,133.313,19.307,19.294,21.923]
[1688286524651,78.313,19.307,19.294,21.923]
[1688286524947,21.909,19.307,19.294,21.923]
[1688286526137,55.0,19.306,19.294,21.923]
[1688286526339,21.913,19.303,19.294,21.923]
[1688286533058,92.7165,19.308,19.294,21.923]
[1688286533242,114.6255,19.308,19.295,55.0]
[1688286533558,21.909,19.308,19.298,21.918]
[1688286539074,21.909,19.308,19.299,55.0]
[1688286539391,21.909,19.308,19.301,21.915]
[1688286540561,21.909,19.308,19.295,56.437]
[1688286541879,21.909,19.308,19.298,21.918]
[1688286545479,56.387,19.313,19.298,21.918]
[1688286545681,21.907,19.309,19.298,21.918]
[1688286547471,55.0,19.308,19.298,21.918]
[1688286547675,21.911,19.305,19.298,21.918]
[1688286548370,78.321,19.305,19.294,95.5395]
[1688286548578,21.911,19.305,19.298,21.919]
[1688286552385,21.914,19.303,19.298,21.919]
[1688286554691,111.403,19.308,19.298,21.919]
[1688286555989,21.911,19.305,19.298,21.919]
[1688286556179,76.913,19.304,19.298,21.919]
[1688286556378,21.913,19.304,19.298,21.919]
[1688286564787,56.403,19.308,19.298,21.919]
[1688286565297,21.911,19.305,19.298,21.919]
[1688286565993,55.0,19.304,19.291,20.0]
[1688286566192,55.0,19.304,19.298,21.919]
[1688286566896,76.912,19.304,19.298,21.919]
[1688286569196,76.913,19.304,19.292,56.448]
[1688286569383,76.913,19.304,19.298,21.919]
[1688286571606,76.912,19.304,19.298,21.919]
[1688286574596,21.912,19.304,19.298,21.919]
[1688286574999,84.55585708,19.31,19.298,21.919]
[1688286575201,19.19,19.32,19.3,19.19]
[1688286575407,148.2758,19.326,19.306,181.238]
[1688286575408,21.892,19.323,19.306,181.238]
[1688286575701,159.149,19.328,19.306,244.10235306]
[1688286575702,21.89,19.324,19.306,244.10235306]
[1688286575889,21.89,19.324,19.312,181.18]
[1688286578305,21.893,19.321,19.312,181.18]
[1688286578505,21.893,19.321,19.312,78.292]
[1688286578888,21.89,19.324,19.312,78.292]
[1688286579985,76.891,19.323,19.312,78.292]
[1688286580617,21.891,19.323,19.312,78.292]
[1688286580810,56.348,19.327,19.312,78.292]
[1688286580990,21.891,19.323,19.312,78.292]
[1688286581490,21.89,19.324,19.312,78.292]
[1688286582105,76.891,19.323,19.312,78.292]
[1688286582303,21.891,19.323,19.312,78.292]
[1688286582502,21.89,19.324,19.312,78.292]
[1688286582802,75.367,19.33,19.312,78.292]
[1688286583594,55.0,19.329,19.312,78.292]
[1688286583891,21.887,19.327,19.312,78.292]
[1688286584095,55.0,19.326,19.312,78.292]
[1688286584297,21.892,19.322,19.312,78.292]
[1688286584501,55.0,19.321,19.312,78.292]
[1688286584706,65.26985708,19.329,19.312,78.292]
[1688286584903,55.0,19.328,19.312,78.292]
[1688286585708,21.889,19.325,19.312,78.292]
[1688286585907,21.892,19.323,19.312,78.292]
[1688286588126,21.89,19.324,19.312,78.292]
[1688286588313,55.0,19.323,19.312,78.292]
[1688286588610,21.891,19.323,19.312,78.292]
[1688286588790,76.893,19.322,19.312,78.292]
[1688286589193,55.0,19.322,19.312,78.292]
[1688286589791,76.892,19.322,19.312,78.292]
[1688286591305,76.892,19.322,19.312,21.903]
[1688286594515,55.0,19.322,19.312,21.903]
[1688286595814,76.892,19.322,19.312,21.903]
[1688286596202,55.0,19.322,19.312,21.903]
[1688286596399,76.892,19.322,19.312,21.903]
[1688286599212,55.0,19.322,19.312,21.903]
[1688286599412,55.0,19.323,19.312,21.903]
[1688286599620,76.891,19.323,19.312,21.903]
[1688286601723,95.67,19.32,19.3,159.374]
[1688286601900,21.901,19.314,19.308,21.907]
[1688286602106,55.0,19.313,19.308,21.907]
[1688286602412,76.902,19.313,19.308,21.907]
[1688286603814,55.0,19.313,19.308,21.907]
[1688286604714,76.902,19.313,19.308,21.907]
[1688286605616,76.902,19.313,19.301,20.0]
[1688286605820,76.902,19.313,19.302,21.914]
[1688286607710,21.901,19.314,19.302,21.914]
[1688286607906,99.2594,19.316,19.302,21.914]
[1688286608109,21.896,19.319,19.302,21.914]
[1688286608311,99.2594,19.329,19.309,181.204]
[1688286608312,21.894,19.321,19.309,181.204]
[1688286610426,55.0,19.32,19.309,181.204]
[1688286610726,21.898,19.317,19.309,78.302]
[1688286610931,55.0,19.32,19.309,181.207]
[1688286611130,55.0,19.321,19.309,181.207]
[1688286611827,21.897,19.317,19.309,181.207]
[1688286612221,21.896,19.319,19.309,181.207]
[1688286612420,55.0,19.321,19.309,181.207]
[1688286612619,21.896,19.319,19.309,181.207]
[1688286614719,21.896,19.319,19.309,78.302]
[1688286617715,78.265,19.319,19.309,21.906]
[1688286618725,21.896,19.319,19.309,21.906]
[1688286620431,21.899,19.316,19.309,21.906]
[1688286620928,21.899,19.316,19.306,21.91]
[1688286621135,55.0,19.318,19.304,21.911]
[1688286621136,21.903,19.312,19.304,21.911]
[1688286621734,55.0,19.311,19.304,21.911]
[1688286621918,21.906,19.309,19.304,21.911]
[1688286622114,21.905,19.311,19.304,21.911]
[1688286622321,21.904,19.312,19.304,21.911]
[1688286622516,21.903,19.313,19.304,21.911]
[1688286622730,75.527,19.32,19.304,124.843]
[1688286622929,55.0,19.318,19.304,124.843]
[1688286623829,21.897,19.317,19.304,124.843]
[1688286624033,55.0,19.316,19.304,124.843]
[1688286624332,21.9,19.315,19.304,124.843]
[1688286625423,21.899,19.316,19.304,124.843]
[1688286626328,21.898,19.317,19.304,124.843]
[1688286626535,21.898,19.317,19.305,96.4774]
[1688286626723,21.898,19.317,19.308,78.307]
[1688286627626,21.897,19.318,19.308,78.307]
[1688286627936,102.82,19.325,19.308,78.307]
[1688286628139,21.894,19.321,19.309,75.0]
[1688286628327,21.894,19.321,19.312,78.29]
[1688286629139,56.348,19.327,19.312,21.902]
[1688286629335,21.891,19.323,19.312,21.902]
[1688286631032,151.583,19.329,19.312,21.902]
[1688286631229,55.0,19.328,19.312,21.902]
[1688286631437,21.889,19.324,19.312,21.902]
[1688286632140,55.0,19.328,19.312,21.902]
[1688286633040,21.89,19.324,19.312,21.902]
[1688286635020,214.153,19.328,19.312,21.902]
[1688286635225,21.89,19.324,19.312,21.902]
[1688286635630,55.0,19.328,19.312,21.902]
[1688286635829,76.886,19.328,19.312,21.902]
[1688286638544,85.81585708,19.328,19.312,21.902]
[1688286639246,76.886,19.328,19.312,21.902]
[1688286640042,85.81585708,19.328,19.312,21.902]
[1688286642844,21.891,19.323,19.312,21.902]
[1688286643028,21.893,19.321,19.312,21.902]
[1688286643227,55.0,19.32,19.312,21.902]
[1688286643624,21.892,19.322,19.312,21.902]
[1688286643824,55.0,19.321,19.312,21.902]
[1688286644343,21.892,19.322,19.312,21.902]
[1688286645549,76.894,19.321,19.312,21.902]
[1688286646048,21.894,19.321,19.312,21.902]
[1688286647347,159.166,19.326,19.312,21.902]
[1688286647551,55.0,19.325,19.312,21.902]
[1688286647737,21.89,19.324,19.312,21.902]
[1688286648052,55.0,19.323,19.312,21.902]
[1688286648235,21.894,19.32,19.312,21.902]
[1688286648439,55.0,19.319,19.312,21.902]
[1688286649748,76.896,19.319,19.312,21.902]
[1688286652333,76.895,19.319,19.312,21.902]
[1688286652534,55.0,19.319,19.312,21.902]
[1688286654834,55.0,19.32,19.312,21.902]
[1688286655340,76.894,19.32,19.312,21.902]
[1688286656455,96.044,19.32,19.312,21.902]
[1688286657734,41.044,19.32,19.312,21.902]
[1688286659047,21.897,19.317,19.312,21.902]
[1688286660246,21.897,19.317,19.307,56.402]
[1688286660451,21.897,19.317,19.312,21.902]
[1688286660663,21.897,19.317,19.307,56.402]
[1688286660664,21.902,19.313,19.308,21.907]
[1688286660870,55.0,19.316,19.303,56.415]
[1688286660871,21.905,19.311,19.303,56.415]
[1688286661362,21.905,19.311,19.305,21.91]
[1688286661545,55.0,19.31,19.303,21.912]
[1688286661744,21.908,19.308,19.302,21.913]
[1688286662061,55.0,19.307,19.302,21.913]
[1688286662258,21.91,19.306,19.302,21.913]
[1688286662463,157.883,19.314,19.302,21.913]
[1688286662762,56.385,19.314,19.302,21.913]
[1688286662961,55.0,19.313,19.302,21.913]
[1688286664064,21.903,19.312,19.302,21.913]
[1688286664249,55.0,19.311,19.302,21.913]
[1688286664450,76.905,19.311,19.302,21.913]
[1688286667142,76.905,19.311,19.301,21.915]
[1688286667348,0.77357067,19.31,19.296,159.403]
[1688286667570,21.91,19.306,19.301,21.915]
[1688286667770,55.0,19.305,19.3,21.916]
[1688286667947,21.913,19.304,19.3,21.916]
[1688286668747,21.913,19.304,19.298,21.918]
[1688286668952,55.0,19.303,19.298,21.918]
[1688286669154,21.915,19.302,19.298,21.918]
[1688286670452,90.9389,19.311,19.298,78.348]
[1688286670652,21.908,19.308,19.298,78.348]
[1688286671565,21.908,19.308,19.298,21.918]
[1688286671757,21.912,19.305,19.298,21.918]
[1688286672869,78.322,19.305,19.291,20.0]
[1688286673069,58.70517104,19.304,19.294,21.922]
[1688286673275,21.915,19.301,19.294,21.922]
[1688286673572,21.919,19.299,19.294,21.922]
[1688286673772,21.917,19.3,19.294,21.922]
[1688286674078,21.916,19.301,19.294,21.922]
[1688286675074,21.919,19.299,19.294,21.922]
[1688286676557,21.922,19.306,19.294,21.922]
[1688286676772,5.9669994,19.308,19.294,21.922]
[1688286677976,21.912,19.305,19.294,124.907]
[1688286679674,56.396,19.31,19.294,124.907]
[1688286679863,21.911,19.306,19.295,55.0]
[1688286680184,56.389,19.313,19.298,21.919]
[1688286680475,21.908,19.308,19.298,21.919]
[1688286683679,78.309,19.308,19.298,21.919]
[1688286684679,21.908,19.308,19.298,21.919]
[1688286684977,78.309,19.308,19.298,21.919]
[1688286686976,21.908,19.308,19.299,55.0]
[1688286687162,21.907,19.309,19.301,21.915]
[1688286687363,21.907,19.309,19.302,20.0]
[1688286687662,21.907,19.309,19.304,21.912]
[1688286687860,21.906,19.31,19.304,21.912]
[1688286689081,56.388,19.313,19.304,21.912]
[1688286689082,21.905,19.311,19.304,21.912]
[1688286689272,159.237,19.318,19.304,21.912]
[1688286689580,21.902,19.313,19.304,21.912]
[1688286691675,21.901,19.314,19.304,124.844]
[1688286692768,21.901,19.314,19.304,21.912]
[1688286693076,21.901,19.314,19.304,78.325]
[1688286693577,55.0,19.313,19.304,21.912]
[1688286693875,21.905,19.311,19.304,21.912]
[1688286696366,55.0,19.31,19.304,21.912]
[1688286696565,21.907,19.309,19.304,21.912]
[1688286696777,21.906,19.31,19.305,21.91]
[1688286697883,21.903,19.312,19.305,21.91]
[1688286698661,21.903,19.313,19.305,21.91]
[1688286699270,97.778,19.319,19.305,21.91]